[Event "*** Titled Tuesday 3|2 Blitz"]
[Site "Chess.com"]
[Date "2017.03.07"]
[Round "4"]
[White "Blitzstream"]
[Black "1e41-0"]
[Result "0-1"]
[WhiteElo "2488"]
[BlackElo "2341"]
[TimeControl "180+2"]
[EndTime "13:55:38 PST"]
[Termination "1e41-0 won on time"]

1. d4 {[%clk 0:03:02]} 1... d5 {[%clk 0:03:00.8]} 2. Nf3 {[%clk 0:03:02.7]} 2...
Nf6 {[%clk 0:03:01.5]} 3. Bf4 {[%clk 0:03:03.6]} 3... Bf5 {[%clk 0:03:01.7]} 4.
e3 {[%clk 0:03:04.6]} 4... e6 {[%clk 0:03:02.7]} 5. c4 {[%clk 0:03:04.7]} 5...
c6 {[%clk 0:03:03.3]} 6. Nc3 {[%clk 0:03:04.6]} 6... Bd6 {[%clk 0:03:02.6]} 7.
Qb3 {[%clk 0:03:01.1]} 7... Bxf4 {[%clk 0:02:53]} 8. exf4 {[%clk 0:02:34.4]}
8... Qc7 {[%clk 0:02:51.6]} 9. g3 {[%clk 0:02:16.3]} 9... Nbd7 {[%clk
0:02:48.9]} 10. Be2 {[%clk 0:02:14.5]} 10... O-O {[%clk 0:02:48.4]} 11. O-O
{[%clk 0:02:15.3]} 11... Ne4 {[%clk 0:02:39.9]} 12. Ne5 {[%clk 0:02:07.8]} 12...
Nd2 {[%clk 0:02:35.8]} 13. Qd1 {[%clk 0:02:04.8]} 13... Nxf1 {[%clk 0:02:35.7]}
14. Qxf1 {[%clk 0:02:06.7]} 14... dxc4 {[%clk 0:02:32.9]} 15. Bxc4 {[%clk
0:02:01.1]} 15... Rad8 {[%clk 0:02:20.9]} 16. Bb3 {[%clk 0:01:53]} 16... Nf6
{[%clk 0:01:58.1]} 17. Rd1 {[%clk 0:01:44.2]} 17... Qb6 {[%clk 0:01:52.3]} 18.
Nc4 {[%clk 0:01:41.9]} 18... Qc7 {[%clk 0:01:51.3]} 19. Ne3 {[%clk 0:01:35.2]}
19... Bg6 {[%clk 0:01:50.1]} 20. Qc4 {[%clk 0:01:26.4]} 20... Bh5 {[%clk
0:01:47.5]} 21. Rd2 {[%clk 0:01:19.8]} 21... Bf3 {[%clk 0:01:47]} 22. Bd1 {[%clk
0:01:09.9]} 22... Bxd1 {[%clk 0:01:44.2]} 23. Rxd1 {[%clk 0:01:11]} 23... Rd7
{[%clk 0:01:42.4]} 24. f5 {[%clk 0:00:59.5]} 24... exf5 {[%clk 0:01:36.5]} 25.
Nxf5 {[%clk 0:01:01.4]} 25... Rfd8 {[%clk 0:01:36.5]} 26. Qe2 {[%clk 0:00:59.9]}
26... Qa5 {[%clk 0:01:32.2]} 27. Qf3 {[%clk 0:00:55.8]} 27... Nd5 {[%clk
0:01:28.1]} 28. Ne4 {[%clk 0:00:50.4]} 28... Ne7 {[%clk 0:01:19.6]} 29. Ned6
{[%clk 0:00:20.2]} 29... Qd5 {[%clk 0:00:56.5]} 30. Qg4 {[%clk 0:00:14.5]} 30...
Ng6 {[%clk 0:00:54.8]} 31. Ne4 {[%clk 0:00:15.5]} 31... h5 {[%clk 0:00:34.7]}
32. Qf3 {[%clk 0:00:07.7]} 32... Re8 {[%clk 0:00:25.7]} 33. Re1 {[%clk
0:00:07.7]} 33... Re6 {[%clk 0:00:21.8]} 34. Re3 {[%clk 0:00:06.5]} 34... Rd8
{[%clk 0:00:21.6]} 35. Qxh5 {[%clk 0:00:05.7]} 35... Rxe4 {[%clk 0:00:18.1]} 36.
Rf3 {[%clk 0:00:03.4]} 36... Rde8 {[%clk 0:00:17.1]} 37. Kg2 {[%clk 0:00:03.8]}
37... Re1 {[%clk 0:00:16.6]} 38. Qg5 {[%clk 0:00:04.8]} 38... Qc4 {[%clk
0:00:15.5]} 39. Kh3 {[%clk 0:00:04.8]} 39... Qf1+ {[%clk 0:00:16.4]} 40. Kg4
{[%clk 0:00:06.1]} 40... R1e4+ {[%clk 0:00:17.3]} 41. Kh5 {[%clk 0:00:07.2]}
41... Qh3+ {[%clk 0:00:17.6]} 42. Nh4 {[%clk 0:00:08.8]} 42... Rxd4 {[%clk
0:00:14.7]} 43. Rxf7 {[%clk 0:00:07.1]} 43... Rxh4+ {[%clk 0:00:14.2]} 44. gxh4
{[%clk 0:00:07.4]} 44... Re5 {[%clk 0:00:15.1]} 0-1

[Event "*** Titled Tuesday 3|2 Blitz"]
[Site "Chess.com"]
[Date "2017.03.07"]
[Round "4"]
[White "AdrianaNikolova"]
[Black "Buffy7"]
[Result "0-1"]
[WhiteElo "2324"]
[BlackElo "2505"]
[TimeControl "180+2"]
[EndTime "13:55:38 PST"]
[Termination "Buffy7 won by resignation"]

1. e4 {[%clk 0:02:40.1]} 1... c5 {[%clk 0:03:00.8]} 2. Nf3 {[%clk 0:02:38]} 2...
Nc6 {[%clk 0:03:02.4]} 3. d4 {[%clk 0:02:37.5]} 3... cxd4 {[%clk 0:03:04.3]} 4.
Nxd4 {[%clk 0:02:39.2]} 4... Nf6 {[%clk 0:03:06]} 5. Nc3 {[%clk 0:02:40.2]} 5...
e5 {[%clk 0:03:07.6]} 6. Ndb5 {[%clk 0:02:37.6]} 6... d6 {[%clk 0:03:08.8]} 7.
Bg5 {[%clk 0:02:38.6]} 7... a6 {[%clk 0:03:10.4]} 8. Na3 {[%clk 0:02:39.6]} 8...
Be6 {[%clk 0:03:12]} 9. Nc4 {[%clk 0:02:34.1]} 9... Rb8 {[%clk 0:03:13.2]} 10.
Ne3 {[%clk 0:02:35]} 10... Be7 {[%clk 0:02:57.2]} 11. Bc4 {[%clk 0:02:13.3]}
11... b5 {[%clk 0:02:32.1]} 12. Bxf6 {[%clk 0:01:34.5]} 12... Bxf6 {[%clk
0:02:31.5]} 13. Bd5 {[%clk 0:00:55.6]} 13... Ne7 {[%clk 0:02:27.6]} 14. Ng4
{[%clk 0:00:39.4]} 14... Bxg4 {[%clk 0:02:25.4]} 15. Qxg4 {[%clk 0:00:39.4]}
15... b4 {[%clk 0:02:27]} 16. Ne2 {[%clk 0:00:30.2]} 16... Nxd5 {[%clk
0:02:25.9]} 17. exd5 {[%clk 0:00:32.1]} 17... O-O {[%clk 0:02:23.9]} 18. Ng3
{[%clk 0:00:29.2]} 18... g6 {[%clk 0:02:23.4]} 19. h4 {[%clk 0:00:29.3]} 19...
Qc8 {[%clk 0:02:11.6]} 20. Qe4 {[%clk 0:00:27.1]} 20... h5 {[%clk 0:02:03.8]}
21. O-O-O {[%clk 0:00:25.1]} 21... Bg7 {[%clk 0:02:03.6]} 22. Rd3 {[%clk
0:00:23.7]} 22... f5 {[%clk 0:02:02.4]} 23. Qe2 {[%clk 0:00:15]} 23... e4 {[%clk
0:02:01.9]} 24. Nxe4 {[%clk 0:00:12.4]} 24... fxe4 {[%clk 0:02:03.8]} 25. Qxe4
{[%clk 0:00:14.2]} 25... Rxf2 {[%clk 0:01:59]} 26. Qe6+ {[%clk 0:00:03.9]} 26...
Qxe6 {[%clk 0:01:57.2]} 27. dxe6 {[%clk 0:00:05.8]} 27... Rc8 {[%clk 0:01:58.8]}
28. c3 {[%clk 0:00:05.1]} 28... bxc3 {[%clk 0:01:59.3]} 29. bxc3 {[%clk
0:00:06.6]} 29... Bxc3 {[%clk 0:02:00.6]} 30. Kd1 {[%clk 0:00:05]} 30... Be5
{[%clk 0:01:58.2]} 31. Rhh3 {[%clk 0:00:04.6]} 31... Rb8 {[%clk 0:01:56.8]} 32.
Ke1 {[%clk 0:00:04]} 32... Rxg2 {[%clk 0:01:56.1]} 33. Rb3 {[%clk 0:00:04.5]}
33... Re8 {[%clk 0:01:55.4]} 34. Rb7 {[%clk 0:00:03.7]} 34... Rxe6 {[%clk
0:01:50.3]} 35. Rf3 {[%clk 0:00:04]} 35... Rf6 {[%clk 0:01:46.6]} 36. Rb8+
{[%clk 0:00:02]} 36... Kg7 {[%clk 0:01:46.4]} 37. Rb7+ {[%clk 0:00:03.9]} 37...
Kh6 {[%clk 0:01:47.8]} 38. Rxf6 {[%clk 0:00:04.9]} 38... Bxf6 {[%clk 0:01:49.3]}
39. Rb6 {[%clk 0:00:04.8]} 39... Bxh4+ {[%clk 0:01:49.5]} 40. Kf1 {[%clk
0:00:03.1]} 40... Rf2+ {[%clk 0:01:50.8]} 41. Kg1 {[%clk 0:00:04.5]} 41... Rf6
{[%clk 0:01:49.4]} 42. Rxa6 {[%clk 0:00:05.6]} 42... Bf2+ {[%clk 0:01:51.1]} 43.
Kg2 {[%clk 0:00:05.9]} 43... Bc5 {[%clk 0:01:52.7]} 44. a4 {[%clk 0:00:07.4]}
44... Rf2+ {[%clk 0:01:51.7]} 45. Kg3 {[%clk 0:00:08]} 45... g5 {[%clk
0:01:53.1]} 46. Ra8 {[%clk 0:00:09.9]} 46... h4+ {[%clk 0:01:53.7]} 47. Kh3
{[%clk 0:00:07.9]} 47... Rf3+ {[%clk 0:01:54.5]} 48. Kg4 {[%clk 0:00:08.2]}
48... Rf4+ {[%clk 0:01:54.8]} 49. Kh3 {[%clk 0:00:09.5]} 49... Rb4 {[%clk
0:01:54.8]} 50. Rh8+ {[%clk 0:00:09]} 50... Kg6 {[%clk 0:01:56]} 51. Rg8+ {[%clk
0:00:10.1]} 51... Kf5 {[%clk 0:01:57.3]} 52. Rf8+ {[%clk 0:00:11.6]} 52... Ke6
{[%clk 0:01:58.7]} 53. Re8+ {[%clk 0:00:12.7]} 53... Kd7 {[%clk 0:01:59.7]} 54.
Ra8 {[%clk 0:00:14.2]} 54... Rb3+ {[%clk 0:01:52.5]} 55. Kg4 {[%clk 0:00:08.7]}
55... Rg3+ {[%clk 0:01:53.3]} 56. Kf5 {[%clk 0:00:09.1]} 56... h3 {[%clk
0:01:54.3]} 57. Rh8 {[%clk 0:00:08.8]} 57... g4 {[%clk 0:01:55]} 58. Rh7+ {[%clk
0:00:09.2]} 58... Kc6 {[%clk 0:01:55.4]} 59. a5 {[%clk 0:00:11.1]} 59... Kb5
{[%clk 0:01:55.9]} 60. Kf4 {[%clk 0:00:11.9]} 60... Rg2 {[%clk 0:01:57.2]} 61.
Ke4 {[%clk 0:00:12.2]} 61... h2 {[%clk 0:01:56.9]} 62. a6 {[%clk 0:00:11.3]}
62... Kxa6 {[%clk 0:01:57.5]} 0-1

[Event "*** Titled Tuesday 3|2 Blitz"]
[Site "Chess.com"]
[Date "2017.03.07"]
[Round "4"]
[White "Alexander_Moskalenko"]
[Black "VerdeNotte"]
[Result "0-1"]
[WhiteElo "2703"]
[BlackElo "2568"]
[TimeControl "180+2"]
[EndTime "13:55:43 PST"]
[Termination "VerdeNotte won by resignation"]

1. d4 {[%clk 0:03:01.4]} 1... Nf6 {[%clk 0:03:00.6]} 2. Nf3 {[%clk 0:02:47]}
2... g6 {[%clk 0:03:01.1]} 3. Bf4 {[%clk 0:02:44.3]} 3... Bg7 {[%clk 0:03:01.8]}
4. e3 {[%clk 0:02:28.8]} 4... O-O {[%clk 0:03:01.8]} 5. h3 {[%clk 0:02:28.6]}
5... b6 {[%clk 0:03:02.8]} 6. Bh2 {[%clk 0:02:28.5]} 6... Bb7 {[%clk 0:03:03.9]}
7. a4 {[%clk 0:02:26.2]} 7... a5 {[%clk 0:02:57.9]} 8. Nc3 {[%clk 0:02:13.6]}
8... d6 {[%clk 0:02:52]} 9. Bc4 {[%clk 0:02:14.5]} 9... Nc6 {[%clk 0:02:42.7]}
10. O-O {[%clk 0:02:14.8]} 10... e6 {[%clk 0:02:36.2]} 11. Re1 {[%clk
0:02:10.4]} 11... Nb4 {[%clk 0:02:22.2]} 12. Bf1 {[%clk 0:02:01.5]} 12... Bxf3
{[%clk 0:02:15.9]} 13. gxf3 {[%clk 0:01:53]} 13... Nh5 {[%clk 0:02:12]} 14. Ne2
{[%clk 0:01:51.2]} 14... f5 {[%clk 0:02:09.9]} 15. c3 {[%clk 0:01:52.3]} 15...
Nd5 {[%clk 0:02:08.9]} 16. f4 {[%clk 0:01:43.9]} 16... Nhf6 {[%clk 0:01:57.9]}
17. Bg2 {[%clk 0:01:45]} 17... Ne4 {[%clk 0:01:48.3]} 18. Ng3 {[%clk 0:01:45.6]}
18... Ndf6 {[%clk 0:01:44.5]} 19. Nxe4 {[%clk 0:01:38.6]} 19... Nxe4 {[%clk
0:01:42.6]} 20. d5 {[%clk 0:01:37.1]} 20... Qe7 {[%clk 0:01:35.4]} 21. dxe6
{[%clk 0:01:36.8]} 21... Qxe6 {[%clk 0:01:34.2]} 22. Qd3 {[%clk 0:01:30.1]}
22... Rae8 {[%clk 0:01:33.1]} 23. Rad1 {[%clk 0:01:29.9]} 23... Kh8 {[%clk
0:01:33.9]} 24. Qd5 {[%clk 0:01:28.2]} 24... Bf6 {[%clk 0:01:28.7]} 25. Qxe6
{[%clk 0:01:27.7]} 25... Rxe6 {[%clk 0:01:29.6]} 26. Bxe4 {[%clk 0:01:21]} 26...
Rxe4 {[%clk 0:01:28.8]} 27. Ra1 {[%clk 0:01:22]} 27... Rfe8 {[%clk 0:01:23.6]}
28. Kg2 {[%clk 0:01:22.7]} 28... Kg7 {[%clk 0:01:23.7]} 29. Bg3 {[%clk
0:01:17.2]} 29... d5 {[%clk 0:01:21.7]} 30. Red1 {[%clk 0:01:16.8]} 30... c6
{[%clk 0:01:22.6]} 31. Kf3 {[%clk 0:01:14.9]} 31... Rc4 {[%clk 0:01:23.2]} 32.
Ra2 {[%clk 0:01:10.5]} 32... Ree4 {[%clk 0:01:23.7]} 33. Rda1 {[%clk 0:01:11.3]}
33... h5 {[%clk 0:01:23.2]} 34. Bh2 {[%clk 0:01:09.1]} 34... h4 {[%clk 0:01:23]}
35. Ke2 {[%clk 0:01:09.9]} 35... Re7 {[%clk 0:01:19.2]} 36. Kd3 {[%clk
0:01:08.1]} 36... Rce4 {[%clk 0:01:16.4]} 37. Rg1 {[%clk 0:01:02.4]} 37... c5
{[%clk 0:01:14]} 38. b3 {[%clk 0:00:42.5]} 38... c4+ {[%clk 0:01:12.3]} 39. bxc4
{[%clk 0:00:42.5]} 39... Rxc4 {[%clk 0:01:13.4]} 40. Rb1 {[%clk 0:00:22.4]}
40... Rxc3+ {[%clk 0:01:12]} 41. Kd2 {[%clk 0:00:21.5]} 41... d4 {[%clk
0:01:08.4]} 42. Bg1 {[%clk 0:00:23]} 42... Rd7 {[%clk 0:01:02.1]} 43. Ke2 {[%clk
0:00:21.3]} 43... d3+ {[%clk 0:01:03.1]} 44. Kf3 {[%clk 0:00:22.8]} 44... d2
{[%clk 0:01:01.3]} 45. Rd1 {[%clk 0:00:22.1]} 45... Rc1 {[%clk 0:00:58.9]} 46.
Ke2 {[%clk 0:00:23.4]} 46... Bc3 {[%clk 0:00:58.1]} 47. f3 {[%clk 0:00:21.5]}
47... Bb4 {[%clk 0:00:55.1]} 48. e4 {[%clk 0:00:22.2]} 48... Rdc7 {[%clk
0:00:53.1]} 49. Bd4+ {[%clk 0:00:21.1]} 49... Kf7 {[%clk 0:00:54]} 50. Ra1
{[%clk 0:00:19.4]} 50... R7c4 {[%clk 0:00:49.2]} 51. Kd3 {[%clk 0:00:17.3]}
51... Rxd4+ {[%clk 0:00:49.9]} 52. Kxd4 {[%clk 0:00:18.4]} 52... Bc3+ {[%clk
0:00:51.3]} 53. Kd3 {[%clk 0:00:19.6]} 53... Rxa1 {[%clk 0:00:51.4]} 54. Rxd2
{[%clk 0:00:21.5]} 54... Bxd2 {[%clk 0:00:52.4]} 0-1

[Event "*** Titled Tuesday 3|2 Blitz"]
[Site "Chess.com"]
[Date "2017.03.07"]
[Round "4"]
[White "Zhani-Z"]
[Black "Cecile_Haussernot"]
[Result "1-0"]
[WhiteElo "2330"]
[BlackElo "2270"]
[TimeControl "180+2"]
[EndTime "13:55:43 PST"]
[Termination "Zhani-Z won by resignation"]

1. e4 {[%clk 0:03:02]} 1... c5 {[%clk 0:02:59.4]} 2. Nf3 {[%clk 0:03:02.1]} 2...
d6 {[%clk 0:03:00.3]} 3. d4 {[%clk 0:02:59.8]} 3... cxd4 {[%clk 0:03:01.6]} 4.
Nxd4 {[%clk 0:03:01.3]} 4... Nf6 {[%clk 0:03:03.1]} 5. f3 {[%clk 0:03:02.9]}
5... e5 {[%clk 0:03:01.6]} 6. Nb3 {[%clk 0:03:02.6]} 6... a5 {[%clk 0:02:58.3]}
7. c4 {[%clk 0:02:52.3]} 7... Nc6 {[%clk 0:02:57.2]} 8. Nc3 {[%clk 0:02:52.4]}
8... a4 {[%clk 0:02:38.7]} 9. Nd2 {[%clk 0:02:53.3]} 9... Qa5 {[%clk 0:02:37.2]}
10. a3 {[%clk 0:02:42.1]} 10... Nd4 {[%clk 0:02:36.4]} 11. Bd3 {[%clk
0:02:26.9]} 11... d5 {[%clk 0:02:22.1]} 12. exd5 {[%clk 0:02:21.5]} 12... Bc5
{[%clk 0:02:22.9]} 13. Kf1 {[%clk 0:02:12.4]} 13... O-O {[%clk 0:02:17.7]} 14.
Nde4 {[%clk 0:02:13]} 14... Nxe4 {[%clk 0:02:14.8]} 15. Nxe4 {[%clk 0:02:14]}
15... Bb6 {[%clk 0:02:07.4]} 16. Bd2 {[%clk 0:02:14.5]} 16... Qa7 {[%clk
0:02:05.6]} 17. Bb4 {[%clk 0:02:15]} 17... Nf5 {[%clk 0:02:00.9]} 18. Qd2 {[%clk
0:01:47.5]} 18... Be3 {[%clk 0:02:00.3]} 19. Qe1 {[%clk 0:01:48]} 19... Bd4
{[%clk 0:01:44.3]} 20. Qd2 {[%clk 0:01:30.5]} 20... Ne3+ {[%clk 0:01:41.4]} 21.
Ke1 {[%clk 0:01:31]} 21... Re8 {[%clk 0:01:32.4]} 22. Nd6 {[%clk 0:01:31.5]}
22... Rd8 {[%clk 0:01:29.4]} 23. Nb5 {[%clk 0:01:30]} 23... Qb6 {[%clk
0:01:28.5]} 24. Nxd4 {[%clk 0:01:23.3]} 24... exd4 {[%clk 0:01:29.5]} 25. Kf2
{[%clk 0:01:21.7]} 25... Qh6 {[%clk 0:01:16.1]} 26. Rae1 {[%clk 0:01:02.4]}
26... Re8 {[%clk 0:01:12.4]} 27. Be4 {[%clk 0:00:43.9]} 27... f5 {[%clk
0:00:57.2]} 28. Qxd4 {[%clk 0:00:42.3]} 28... f4 {[%clk 0:00:41.8]} 29. d6
{[%clk 0:00:37.1]} 29... Be6 {[%clk 0:00:31.2]} 30. Rxe3 {[%clk 0:00:28.9]}
30... fxe3+ {[%clk 0:00:32.2]} 31. Qxe3 {[%clk 0:00:30]} 31... Qh4+ {[%clk
0:00:33.7]} 32. g3 {[%clk 0:00:31]} 32... Qf6 {[%clk 0:00:35.3]} 33. Bc3 {[%clk
0:00:30.4]} 33... Qd8 {[%clk 0:00:36.7]} 34. c5 {[%clk 0:00:31.5]} 34... b6
{[%clk 0:00:36.2]} 35. Qd4 {[%clk 0:00:31.7]} 35... Ra7 {[%clk 0:00:33.5]} 36.
c6 {[%clk 0:00:32.2]} 36... Qg5 {[%clk 0:00:22.8]} 37. d7 {[%clk 0:00:30.7]}
37... Rd8 {[%clk 0:00:21.6]} 38. Rd1 {[%clk 0:00:30.7]} 38... Bxd7 {[%clk
0:00:18.9]} 39. cxd7 {[%clk 0:00:26.6]} 39... Raxd7 {[%clk 0:00:20.8]} 40. Qxd7
{[%clk 0:00:28]} 40... Rxd7 {[%clk 0:00:21.5]} 41. Rxd7 {[%clk 0:00:29.5]} 41...
Qc5+ {[%clk 0:00:23]} 42. Kg2 {[%clk 0:00:30.6]} 42... g6 {[%clk 0:00:21.3]} 43.
Rg7+ {[%clk 0:00:29.5]} 43... Kf8 {[%clk 0:00:22.6]} 44. Bb4 {[%clk 0:00:31]}
44... Kxg7 {[%clk 0:00:23.4]} 45. Bxc5 {[%clk 0:00:31]} 45... bxc5 {[%clk
0:00:25.3]} 46. Bc6 {[%clk 0:00:32.5]} 46... Kf6 {[%clk 0:00:27.2]} 47. Bxa4
{[%clk 0:00:33.8]} 47... Ke5 {[%clk 0:00:28.8]} 48. Bb5 {[%clk 0:00:34.9]} 48...
Kd4 {[%clk 0:00:30.7]} 49. a4 {[%clk 0:00:36.1]} 49... Ke3 {[%clk 0:00:31.6]}
50. a5 {[%clk 0:00:36.6]} 1-0

[Event "*** Titled Tuesday 3|2 Blitz"]
[Site "Chess.com"]
[Date "2017.03.07"]
[Round "4"]
[White "Cayse"]
[Black "tjallkompall"]
[Result "1-0"]
[WhiteElo "2553"]
[BlackElo "2468"]
[TimeControl "180+2"]
[EndTime "13:55:44 PST"]
[Termination "Cayse won on time"]

1. e4 {[%clk 0:03:02]} 1... c5 {[%clk 0:03:00.2]} 2. Nf3 {[%clk 0:03:02.4]} 2...
g6 {[%clk 0:03:01.5]} 3. d4 {[%clk 0:03:03]} 3... cxd4 {[%clk 0:03:03.4]} 4.
Nxd4 {[%clk 0:03:04.5]} 4... Bg7 {[%clk 0:03:04.7]} 5. c4 {[%clk 0:03:05]} 5...
Nc6 {[%clk 0:03:05.9]} 6. Be3 {[%clk 0:03:05.3]} 6... Nf6 {[%clk 0:03:07.3]} 7.
Nc3 {[%clk 0:03:05.7]} 7... d6 {[%clk 0:03:07.8]} 8. Be2 {[%clk 0:03:06.3]} 8...
O-O {[%clk 0:03:08.9]} 9. O-O {[%clk 0:03:07.1]} 9... Nxd4 {[%clk 0:03:10.4]}
10. Bxd4 {[%clk 0:03:06.4]} 10... Bd7 {[%clk 0:03:12]} 11. Qd2 {[%clk 0:03:07]}
11... Bc6 {[%clk 0:03:12]} 12. f3 {[%clk 0:03:07.7]} 12... a5 {[%clk 0:03:13.2]}
13. b3 {[%clk 0:03:08.4]} 13... Nd7 {[%clk 0:03:14.2]} 14. Be3 {[%clk 0:03:09]}
14... Nc5 {[%clk 0:03:15.1]} 15. Rab1 {[%clk 0:03:06.9]} 15... e6 {[%clk
0:03:13.7]} 16. Rfd1 {[%clk 0:03:06.6]} 16... Be5 {[%clk 0:03:14.4]} 17. Bd4
{[%clk 0:03:07.6]} 17... Qe7 {[%clk 0:03:14.4]} 18. Bf1 {[%clk 0:03:07.3]} 18...
Rfd8 {[%clk 0:03:13.6]} 19. Qe3 {[%clk 0:03:08.1]} 19... b6 {[%clk 0:02:59.9]}
20. g3 {[%clk 0:03:08.2]} 20... Bxd4 {[%clk 0:02:50.1]} 21. Rxd4 {[%clk
0:03:08.2]} 21... e5 {[%clk 0:02:50.2]} 22. Rd2 {[%clk 0:03:08.9]} 22... Ne6
{[%clk 0:02:43.9]} 23. Qxb6 {[%clk 0:02:58.4]} 23... Nd4 {[%clk 0:02:44.7]} 24.
Rxd4 {[%clk 0:02:58.9]} 24... exd4 {[%clk 0:02:45.7]} 25. Qxd4 {[%clk
0:02:58.6]} 25... Rab8 {[%clk 0:02:35]} 26. Kf2 {[%clk 0:02:54.3]} 26... Rb4
{[%clk 0:02:14.5]} 27. a3 {[%clk 0:02:52.9]} 27... Rbb8 {[%clk 0:02:12.4]} 28.
b4 {[%clk 0:02:53.6]} 28... axb4 {[%clk 0:02:13.5]} 29. axb4 {[%clk 0:02:54.1]}
29... Ra8 {[%clk 0:02:14.7]} 30. b5 {[%clk 0:02:54.1]} 30... Bb7 {[%clk
0:02:14.9]} 31. Rd1 {[%clk 0:02:48.5]} 31... Ra3 {[%clk 0:02:15.1]} 32. e5
{[%clk 0:02:31.9]} 32... Qe6 {[%clk 0:00:51.9]} 33. exd6 {[%clk 0:02:17.9]}
33... Qf5 {[%clk 0:00:53]} 34. Be2 {[%clk 0:02:17.8]} 34... Re8 {[%clk
0:00:49.8]} 35. d7 {[%clk 0:01:48.3]} 35... Rd8 {[%clk 0:00:28.1]} 36. Rd3
{[%clk 0:01:29.7]} 36... Qh3 {[%clk 0:00:14.1]} 37. Qe5 {[%clk 0:01:14.8]} 37...
Qxh2+ {[%clk 0:00:14]} 38. Ke3 {[%clk 0:01:14.7]} 38... Qg1+ {[%clk 0:00:14.5]}
39. Kf4 {[%clk 0:01:12.1]} 39... Qb6 {[%clk 0:00:11.4]} 40. c5 {[%clk 0:01:05]}
40... Qa5 {[%clk 0:00:12.5]} 41. c6 {[%clk 0:00:59]} 41... f6 {[%clk 0:00:12.3]}
42. Qe6+ {[%clk 0:00:55.1]} 42... Kg7 {[%clk 0:00:12.9]} 43. Ne4 {[%clk
0:00:46.3]} 43... Qc7+ {[%clk 0:00:05.5]} 44. Qd6 {[%clk 0:00:45.6]} 44... Qxd6+
{[%clk 0:00:02.4]} 45. Nxd6 {[%clk 0:00:45.8]} 45... Ra4+ {[%clk 0:00:04.3]} 46.
Ke3 {[%clk 0:00:45.2]} 46... Bxc6 {[%clk 0:00:05.6]} 47. bxc6 {[%clk 0:00:45.8]}
47... Ra7 {[%clk 0:00:07.5]} 48. c7 {[%clk 0:00:43.2]} 48... Rxc7 {[%clk
0:00:08.2]} 49. Ne8+ {[%clk 0:00:44.2]} 1-0

[Event "*** Titled Tuesday 3|2 Blitz"]
[Site "Chess.com"]
[Date "2017.03.07"]
[Round "4"]
[White "Hanging_pointer"]
[Black "JSMastropiero"]
[Result "1-0"]
[WhiteElo "2284"]
[BlackElo "2193"]
[TimeControl "180+2"]
[EndTime "13:55:51 PST"]
[Termination "Hanging_pointer won on time"]

1. e4 {[%clk 0:03:02]} 1... e6 {[%clk 0:02:59.8]} 2. d4 {[%clk 0:03:02.8]} 2...
d5 {[%clk 0:03:00.9]} 3. Nd2 {[%clk 0:03:03.6]} 3... a6 {[%clk 0:02:57.6]} 4.
Ngf3 {[%clk 0:02:56.7]} 4... c5 {[%clk 0:02:57.1]} 5. exd5 {[%clk 0:02:53.7]}
5... exd5 {[%clk 0:02:56.9]} 6. dxc5 {[%clk 0:02:51.3]} 6... Bxc5 {[%clk
0:02:55.4]} 7. Nb3 {[%clk 0:02:53.2]} 7... Bb6 {[%clk 0:02:54.8]} 8. Be2 {[%clk
0:02:54.6]} 8... Nf6 {[%clk 0:02:53.1]} 9. O-O {[%clk 0:02:56.5]} 9... O-O
{[%clk 0:02:52.7]} 10. c3 {[%clk 0:02:57.3]} 10... Nc6 {[%clk 0:02:51.6]} 11.
Bg5 {[%clk 0:02:57.9]} 11... h6 {[%clk 0:02:46.7]} 12. Bh4 {[%clk 0:02:58.9]}
12... g5 {[%clk 0:02:42.2]} 13. Bg3 {[%clk 0:03:00]} 13... Ne4 {[%clk
0:02:42.9]} 14. Nfd4 {[%clk 0:02:59.5]} 14... Qf6 {[%clk 0:02:38.3]} 15. Nf3
{[%clk 0:02:12.5]} 15... Bf5 {[%clk 0:02:28.7]} 16. Nbd4 {[%clk 0:01:37]} 16...
Bg4 {[%clk 0:02:20.7]} 17. Nxc6 {[%clk 0:01:36.3]} 17... bxc6 {[%clk 0:02:10.5]}
18. Ne5 {[%clk 0:01:37.1]} 18... Bxe2 {[%clk 0:01:51.8]} 19. Qxe2 {[%clk
0:01:39]} 19... Rad8 {[%clk 0:01:26.4]} 20. Kh1 {[%clk 0:01:28]} 20... Rfe8
{[%clk 0:01:23]} 21. f4 {[%clk 0:01:06.4]} 21... gxf4 {[%clk 0:00:58.5]} 22.
Qg4+ {[%clk 0:00:58.5]} 22... Qg5 {[%clk 0:00:45.8]} 23. Bh4 {[%clk 0:00:46.7]}
23... Qxg4 {[%clk 0:00:39.8]} 24. Nxg4 {[%clk 0:00:48.6]} 24... Rd6 {[%clk
0:00:38]} 25. Rxf4 {[%clk 0:00:47.8]} 25... Rde6 {[%clk 0:00:34.2]} 26. Raf1
{[%clk 0:00:48]} 26... Rf8 {[%clk 0:00:18.3]} 27. h3 {[%clk 0:00:39.8]} 27...
Bc7 {[%clk 0:00:19.1]} 28. Rf5 {[%clk 0:00:39]} 28... Bg3 {[%clk 0:00:18.3]} 29.
Nf6+ {[%clk 0:00:36.5]} 29... Nxf6 {[%clk 0:00:18.5]} 30. Bxf6 {[%clk
0:00:32.4]} 30... Re1 {[%clk 0:00:16.8]} 31. Rxe1 {[%clk 0:00:27.6]} 31... Bxe1
{[%clk 0:00:18.7]} 32. Rf4 {[%clk 0:00:25.5]} 32... Kh7 {[%clk 0:00:18.2]} 33.
Bd4 {[%clk 0:00:21.9]} 33... Bg3 {[%clk 0:00:15.2]} 34. Rf6 {[%clk 0:00:19.5]}
34... Bh4 {[%clk 0:00:14.9]} 35. Rxc6 {[%clk 0:00:18.4]} 35... Re8 {[%clk
0:00:16.5]} 36. g4 {[%clk 0:00:18.3]} 36... Re1+ {[%clk 0:00:14.4]} 37. Kg2
{[%clk 0:00:19.6]} 37... Re2+ {[%clk 0:00:16]} 38. Kf3 {[%clk 0:00:20.8]} 38...
Rxb2 {[%clk 0:00:17.5]} 39. Rxa6 {[%clk 0:00:21.8]} 39... Rc2 {[%clk 0:00:17]}
40. a4 {[%clk 0:00:19.6]} 40... Be1 {[%clk 0:00:17.3]} 41. Rc6 {[%clk
0:00:20.5]} 41... Ra2 {[%clk 0:00:17.4]} 42. Rc7 {[%clk 0:00:21.4]} 42... Kg8
{[%clk 0:00:17.6]} 43. Rc8+ {[%clk 0:00:21.8]} 43... Kh7 {[%clk 0:00:18.9]} 44.
h4 {[%clk 0:00:21.2]} 44... Rxa4 {[%clk 0:00:17.2]} 45. h5 {[%clk 0:00:21.9]}
45... f6 {[%clk 0:00:15]} 46. Bxf6 {[%clk 0:00:21.5]} 1-0